fUSD/lending_fUSD_20250812
["ID","MTS","AMOUNT","RATE_DAILY","PERIOD"]
[378830323,1755041448794,-1000.0,0.00049315,120]
[378830324,1755041448803,-400.0,0.00049315,120]
[378830325,1755041448813,-400.0,0.00049315,120]
[378830326,1755041448822,-505.5,0.00049315,120]
[378830327,1755041448832,-400.0,0.00049315,120]
[378830328,1755041448841,-400.0,0.00049315,120]
[378830329,1755041448851,-1380.14,0.00049315,120]
[378830330,1755041448860,-544.95,0.00049315,120]
[378830331,1755041448870,-690.43,0.00049315,120]
[378830332,1755041448880,-1140.25,0.00049315,120]
[378830333,1755041448889,-682.17,0.00049315,120]
[378830334,1755041448899,-400.0,0.00049315,120]
[378830335,1755041448909,-948.81,0.00049315,120]
[378830336,1755041448918,-400.0,0.00049315,120]
[378830337,1755041448934,-400.0,0.00049315,120]
[378830338,1755041448945,-813.91,0.00049315,120]
[378830339,1755041448955,-400.0,0.00049315,120]
[378830340,1755041448965,-1796.85,0.00049315,120]
[378830341,1755041448975,-6051.83,0.00049315,120]
[378830342,1755041448985,-400.0,0.00049315,120]
[378830343,1755041448995,-400.0,0.00049315,120]
[378830344,1755041449006,-400.0,0.00049315,120]
[378830345,1755041449016,-738.85,0.00049315,120]
[378830346,1755041449025,-2510.51,0.00049315,120]
[378830347,1755041449035,-400.0,0.00049315,120]
[378830348,1755041449046,-1201.7,0.00049315,120]
[378830349,1755041449056,-400.0,0.00049315,120]
[378830350,1755041449065,-1271.89,0.00049315,120]
[378830351,1755041449075,-400.0,0.00049315,120]
[378830352,1755041449265,-400.0,0.00049315,120]
[378830353,1755041449297,-400.0,0.00049315,120]
[378830354,1755041449307,-400.0,0.00049315,120]
[378830355,1755041449317,-1013.2,0.00049315,120]
[378830356,1755041449327,-400.0,0.00049315,120]
[378830357,1755041449336,-1013.38,0.00049315,120]
[378830358,1755041449346,-487.14,0.00049315,120]
[378830359,1755041449356,-400.0,0.00049315,120]
[378830360,1755041449365,-400.0,0.00049315,120]
[378830361,1755041449375,-1656.69,0.00049315,120]
[378830362,1755041449385,-400.0,0.00049315,120]
[378830363,1755041449395,-400.0,0.00049315,120]
[378830364,1755041449404,-400.0,0.00049315,120]
[378830365,1755041449413,-453.34,0.00049315,120]
[378830366,1755041449423,-616.95,0.00049315,120]
[378830367,1755041449432,-490.0,0.00049315,120]
[378830368,1755041449442,-400.0,0.00049315,120]
[378830369,1755041449452,-400.0,0.00049315,120]
[378830370,1755041449462,-1224.89,0.00049315,120]
[378830371,1755041449471,-522.46,0.00049315,120]
[378830372,1755041449480,-400.0,0.00049315,120]
[378830373,1755041449490,-890.8,0.00049315,120]
[378830374,1755041449500,-1151.72,0.00049315,120]
[378830375,1755041449510,-400.0,0.00049315,120]
[378830376,1755041449519,-400.0,0.00049315,120]
[378830377,1755041449529,-400.0,0.00049315,120]
[378830378,1755041449538,-300.0,0.00049315,120]
[378830379,1755041449548,-400.0,0.00049315,120]
[378830380,1755041449557,-462.52,0.00049315,120]
[378830381,1755041449567,-400.0,0.00049315,120]
[378830382,1755041449576,-400.0,0.00049315,120]
[378830383,1755041449586,-1059.15,0.00049315,120]
[378830384,1755041449595,-970.05,0.00049315,120]
[378830385,1755041449604,-600.81,0.00049315,120]
[378830386,1755041449613,-536.9,0.00049315,120]
[378830387,1755041449623,-400.0,0.00049315,120]
[378830388,1755041449632,-400.0,0.00049315,120]
[378830389,1755041449642,-400.0,0.00049315,120]
[378830390,1755041449652,-1281.46,0.00049315,120]
[378830391,1755041449661,-1157.21,0.00049315,120]
[378830392,1755041449671,-460.0,0.00049315,120]
[378830393,1755041449680,-400.0,0.00049315,120]
[378830394,1755041449690,-12736.38,0.00049315,120]
[378830395,1755041449702,-592.5,0.00049315,120]
[378830396,1755041449712,-273.45121499,0.00049315,120]
[378830397,1755041449721,-400.0,0.00049315,120]
[378830398,1755041449730,-400.0,0.00049315,120]
[378830399,1755041449739,-810.66,0.00049315,120]
[378830400,1755041449748,-697.01,0.00049315,120]
[378830401,1755041449757,-400.0,0.00049315,120]
[378830402,1755041449766,-837.15,0.00049315,120]
[378830403,1755041449776,-1061.2,0.00049315,120]
[378830404,1755041449785,-400.0,0.00049315,120]
[378830405,1755041449795,-515.78,0.00049315,120]
[378830406,1755041449806,-400.0,0.00049315,120]
[378830407,1755041449815,-573.65,0.00049315,120]
[378830408,1755041449824,-400.0,0.00049315,120]
[378830409,1755041449833,-859.73,0.00049315,120]
[378830410,1755041449843,-2526.1,0.00049315,120]
[378830411,1755041449852,-400.0,0.00049315,120]
[378830412,1755041449862,-400.0,0.00049315,120]
[378830413,1755041449871,-400.0,0.00049315,120]
[378830414,1755041449881,-881.83,0.00049315,120]
[378830415,1755041449890,-415.27137349,0.00049315,120]
[378830416,1755041449900,-400.0,0.00049315,120]
[378830417,1755041449910,-400.0,0.00049315,60]
[378830418,1755041449920,-962.41,0.00049315,120]
[378830419,1755041449934,-769.1,0.00049315,120]
[378830420,1755041449943,-400.0,0.00049315,120]
[378830421,1755041449953,-495.23,0.00049315,120]
[378830422,1755041449962,-400.0,0.00049315,120]
[378830423,1755041449971,-400.0,0.00049315,120]
[378830424,1755041449980,-400.0,0.00049315,120]
[378830425,1755041449989,-478.01,0.00049315,120]
[378830426,1755041449998,-400.0,0.00049315,120]
[378830427,1755041450008,-400.0,0.00049315,120]
[378830428,1755041450017,-400.0,0.00049315,120]
[378830429,1755041450026,-420.57,0.00049315,120]
[378830430,1755041450035,-1545.75,0.00049315,120]
[378830431,1755041450044,-460.0,0.00049315,120]
[378830432,1755041450054,-400.0,0.00049315,120]
[378830433,1755041450063,-400.0,0.00049315,120]
[378830434,1755041450072,-935.05,0.00049315,120]
[378830435,1755041450082,-400.0,0.00049315,120]
[378830436,1755041450091,-1108.61,0.00049315,120]
[378830437,1755041450100,-954.55,0.00049315,120]
[378830438,1755041450109,-977.36,0.00049315,120]
[378830439,1755041450119,-400.0,0.00049315,120]
[378830440,1755041450128,-476.01,0.00049315,120]
[378830441,1755041450137,-429.79,0.00049315,120]
[378830442,1755041450146,-400.0,0.00049315,120]
[378830443,1755041450156,-1000.15,0.00049315,120]
[378830444,1755041450166,-400.0,0.00049315,120]
[378830445,1755041450175,-400.0,0.00049315,120]
[378830446,1755041450185,-562.97,0.00049315,120]
[378830447,1755041450194,-400.0,0.00049315,120]
[378830448,1755041450203,-400.0,0.00049315,120]
[378830449,1755041450213,-1373.58,0.00049315,120]
[378830450,1755041450223,-400.0,0.00049315,120]
[378830451,1755041450232,-400.0,0.00049315,120]
[378830452,1755041450241,-400.0,0.00049315,120]
[378830453,1755041450251,-400.0,0.00049315,120]
[378830454,1755041450260,-1165.82,0.00049315,120]
[378830455,1755041450270,-331.58773933,0.00049315,120]
[378830456,1755041450279,-624.2,0.00049315,120]
[378830457,1755041450288,-412.19095609,0.00049315,120]
[378830458,1755041450297,-400.0,0.00049315,120]
[378830459,1755041450307,-1398.45,0.00049315,120]
[378830460,1755041450316,-669.91,0.00049315,120]
[378830461,1755041450325,-488.99412338,0.00049315,120]
[378830462,1755041450335,-433.12,0.00049315,120]
[378830463,1755041450344,-400.0,0.00049315,120]
[378830464,1755041450353,-749.46,0.00049315,120]
[378830465,1755041450363,-400.0,0.00049315,120]
[378830466,1755041450372,-400.0,0.00049315,120]
[378830467,1755041450381,-756.78,0.00049315,120]
[378830468,1755041450391,-400.0,0.00049315,120]
[378830469,1755041450401,-1398.8,0.00049315,120]
[378830470,1755041450411,-400.0,0.00049315,120]
[378830471,1755041450420,-400.0,0.00049315,120]
[378830472,1755041450429,-687.9,0.00049315,120]
[378830473,1755041450439,-696.48,0.00049315,120]
[378830474,1755041450448,-400.0,0.00049315,120]
[378830475,1755041450457,-400.0,0.00049315,120]
[378830476,1755041450467,-529.1,0.00049315,120]
[378830477,1755041450476,-797.59,0.00049315,120]
[378830478,1755041450485,-400.0,0.00049315,120]
[378830479,1755041450495,-400.0,0.00049315,120]
[378830480,1755041450504,-923.02,0.00049315,120]
[378830481,1755041450513,-400.0,0.00049315,120]
[378830482,1755041450524,-673.11,0.00049315,120]
[378830483,1755041450533,-400.0,0.00049315,120]
[378830484,1755041450543,-400.0,0.00049315,120]
[378830485,1755041450552,-400.0,0.00049315,120]
[378830486,1755041450562,-773.79,0.00049315,120]
[378830487,1755041450571,-400.0,0.00049315,120]
[378830488,1755041450580,-1610.08,0.00049315,120]
[378830489,1755041450589,-400.0,0.00049315,120]
[378830490,1755041450599,-400.0,0.00049315,120]
[378830491,1755041450608,-566.87,0.00049315,120]
[378830492,1755041450618,-208.97564612,0.00049315,120]
[378830493,1755041450628,-400.0,0.00049315,120]
[378830494,1755041450637,-400.0,0.00049315,120]
[378830495,1755041450647,-2794.26,0.00049315,120]
[378830496,1755041450657,-400.0,0.00049315,118]
[378830497,1755041450667,-400.0,0.00049315,120]
[378830498,1755041450677,-718.67,0.00049315,120]
[378830499,1755041450686,-400.0,0.00049315,120]
[378830500,1755041450696,-400.0,0.00049315,120]
[378830501,1755041450707,-400.0,0.00049315,120]
[378830502,1755041450716,-1185.35,0.00049315,120]
[378830503,1755041450726,-383.67740006,0.00049315,120]
[378830504,1755041450735,-400.0,0.00049315,120]
[378830505,1755041450746,-400.0,0.00049315,120]
[378830506,1755041450755,-701.68,0.00049315,120]
[378830507,1755041450765,-400.0,0.00049315,120]
[378830508,1755041450775,-478.07,0.00049315,120]
[378830509,1755041450785,-400.0,0.00049315,120]
[378830510,1755041450794,-400.0,0.00049315,120]
[378830511,1755041450803,-400.0,0.00049315,120]
[378830512,1755041450813,-400.0,0.00049315,120]
[378830513,1755041450823,-400.0,0.00049315,120]
[378830514,1755041450835,-543.08,0.00049315,120]
[378830515,1755041450845,-985.15,0.00049315,120]
[378830516,1755041450855,-400.0,0.00049315,120]
[378830517,1755041450864,-419.4,0.00049315,120]
[378830518,1755041450873,-468.85,0.00049315,120]
[378830519,1755041450882,-400.0,0.00049315,120]
[378830520,1755041450892,-434.69,0.00049315,120]
[378830521,1755041450901,-400.0,0.00049315,120]
[378830522,1755041450910,-2066.2,0.00049315,120]
[378830523,1755041450920,-400.0,0.00049315,120]
[378830524,1755041450931,-400.0,0.00049315,120]
[378830525,1755041450941,-400.0,0.00049315,120]
[378830526,1755041450952,-400.0,0.00049315,120]
[378830527,1755041450963,-400.0,0.00049315,120]
[378830528,1755041450972,-805.71,0.00049315,120]
[378830529,1755041450981,-400.0,0.00049315,120]
[378830530,1755041450991,-555.94,0.00049315,120]
[378830531,1755041451000,-824.85,0.00049315,120]
[378830532,1755041451009,-1378.27,0.00049315,120]
[378830533,1755041451019,-400.0,0.00049315,120]
[378830534,1755041451028,-400.0,0.00049315,120]
[378830535,1755041451038,-1400.8,0.00049315,120]
[378830536,1755041451047,-400.0,0.00049315,120]
[378830537,1755041451056,-400.0,0.00049315,120]
[378830538,1755041451065,-1184.27,0.00049315,120]
[378830539,1755041451074,-1039.87,0.00049315,120]
[378830540,1755041451083,-1565.73,0.00049315,120]
[378830541,1755041451097,-400.0,0.00049315,120]
[378830542,1755041451106,-400.0,0.00049315,120]
[378830543,1755041451115,-2400.43,0.00049315,120]
[378830544,1755041451125,-400.0,0.00049315,120]
[378830545,1755041451135,-2300.01,0.00049315,120]
[378830546,1755041451144,-624.57,0.00049315,120]
[378830547,1755041451155,-400.0,0.00049315,120]
[378830548,1755041451164,-400.0,0.00049315,120]
[378830549,1755041451174,-400.0,0.00049315,120]
[378830550,1755041451184,-1745.0,0.00049315,120]
[378830551,1755041451193,-406.12085751,0.00049315,120]
[378830552,1755041451203,-400.0,0.00049315,120]
[378830553,1755041451212,-400.0,0.00049315,120]
[378830554,1755041451221,-859.26,0.00049315,120]
[378830555,1755041451230,-400.0,0.00049315,120]
[378830556,1755041451240,-882.98,0.00049315,120]
[378830557,1755041451249,-1203.38,0.00049315,120]
[378830558,1755041451259,-400.0,0.00049315,120]
[378830559,1755041451269,-400.0,0.00049315,120]
[378830560,1755041451278,-400.0,0.00049315,120]
[378830561,1755041451287,-634.87,0.00049315,120]
[378830562,1755041451296,-929.47,0.00049315,120]
[378830563,1755041451305,-400.0,0.00049315,120]
[378830564,1755041451314,-1306.38,0.00049315,120]
[378830565,1755041451323,-400.0,0.00049315,120]
[378830566,1755041451332,-824.54,0.00049315,120]
[378830567,1755041451341,-1000.0,0.00049315,120]
[378830568,1755041451350,-791.64,0.00049315,120]
[378830569,1755041451359,-400.0,0.00049315,30]
[378830570,1755041451368,-400.0,0.00049315,120]
[378830571,1755041451378,-400.0,0.00049315,120]
[378830572,1755041451387,-837.03,0.00049315,120]
[378830573,1755041451396,-400.0,0.00049315,120]
[378830574,1755041451407,-417.31,0.00049315,120]
[378830575,1755041451416,-442.68,0.00049315,120]
[378830576,1755041451425,-400.0,0.00049315,120]
[378830577,1755041451435,-400.0,0.00049315,120]
[378830578,1755041451444,-400.0,0.00049315,120]
[378830579,1755041451453,-400.0,0.00049315,120]
[378830580,1755041451462,-1000.0,0.00049315,2]
[378830581,1755041451471,-1073.76,0.00049315,120]
[378830582,1755041451480,-1253.15,0.00049315,120]
[378830583,1755041451489,-533.8,0.00049315,120]
[378830584,1755041451499,-400.0,0.00049315,120]
[378830585,1755041451508,-1631.36,0.00049315,120]
[378830586,1755041451517,-1277.18,0.00049315,120]
[378830587,1755041451527,-400.0,0.00049315,120]
[378830588,1755041451536,-400.0,0.00049315,120]
[378830589,1755041451614,-1342.37,0.00049315,120]
[378830590,1755041451624,-400.0,0.00049315,120]
[378830591,1755041451634,-400.0,0.00049315,120]
[378830592,1755041451644,-400.0,0.00049315,120]
[378830593,1755041451655,-400.0,0.00049315,120]
[378830594,1755041451665,-400.0,0.00049315,120]
[378830595,1755041451676,-400.0,0.00049315,120]
[378830596,1755041451686,-2039.79,0.00049315,14]
[378830597,1755041451697,-400.0,0.00049315,120]
[378830598,1755041451708,-400.0,0.00049315,120]
[378830599,1755041451717,-400.0,0.00049315,120]
[378830600,1755041451726,-400.0,0.00049315,120]
[378830601,1755041451735,-400.0,0.00049315,120]
[378830602,1755041451746,-400.0,0.00049315,120]
[378830603,1755041451755,-405.31369127,0.00049315,120]
[378830604,1755041451764,-400.0,0.00049315,120]
[378830605,1755041451774,-1665.29,0.00049315,120]
[378830606,1755041451784,-482.81,0.00049315,120]
[378830607,1755041451793,-400.0,0.00049315,120]
[378830608,1755041451802,-400.0,0.00049315,120]
[378830609,1755041451811,-1271.28,0.00049315,120]
[378830610,1755041451820,-400.0,0.00049315,120]
[378830611,1755041451830,-340.88869658,0.00049315,120]
[378830612,1755041452249,-902.68186099,0.00048258,2]
[378830613,1755041452259,-365.01046122,0.00049315,120]
[378830614,1755041452532,-1888.0,0.00038914,3]
[378830615,1755041452542,-3776.0,0.00041154,3]
[378830616,1755041452552,-716.0,0.00042044,2]
[378830617,1755041452562,-275.0308422,0.00049315,120]
[378830618,1755041452572,-226.74790897,0.00049315,120]
[378830619,1755041452582,-2075.38,0.00049315,120]
[378830620,1755041452592,-460.0,0.00049315,120]
[378830621,1755041452603,-400.0,0.00049315,120]
[378830622,1755041452613,-400.0,0.00049315,120]
[378830623,1755041452623,-412.32800253,0.00049315,120]
[378830624,1755041452633,-517.65,0.00049315,120]
[378830625,1755041452643,-728.42,0.00049315,120]
[378830626,1755041452654,-728.42,0.00049315,120]
[378830627,1755041452664,-400.0,0.00049315,120]
[378830628,1755041452674,-400.0,0.00049315,120]
[378830629,1755041452684,-473.49,0.00049315,120]
[378830630,1755041452695,-400.0,0.00049315,120]
[378830631,1755041452706,-400.0,0.00049315,120]
[378830632,1755041452716,-650.41,0.00049315,120]
[378830633,1755041452727,-910.22,0.00049315,120]
[378830634,1755041452737,-400.0,0.00049315,120]
[378830635,1755041452748,-1325.03,0.00049315,120]
[378830636,1755041452758,-400.0,0.00049315,120]
[378830637,1755041452769,-400.0,0.00049315,120]
[378830638,1755041452780,-200.0,0.00049315,7]
[378830639,1755041452790,-674.61,0.00049315,120]
[378830640,1755041452800,-641.39,0.00049315,120]
[378830641,1755041452810,-400.0,0.00049315,120]
[378830642,1755041452820,-534.48,0.00049315,120]
[378830643,1755041452830,-400.0,0.00049315,120]
[378830644,1755041452841,-408.40780018,0.00049315,120]
[378830645,1755041452850,-400.0,0.00049315,120]
[378830646,1755041452860,-400.0,0.00049315,120]
[378830647,1755041452871,-400.0,0.00049315,120]
[378830648,1755041452881,-886.7,0.00049315,120]
[378830649,1755041452892,-680.64,0.00049315,120]
[378830650,1755041452904,-544.79,0.00049315,120]
[378830651,1755041452914,-400.0,0.00049315,120]
[378830652,1755041452925,-400.0,0.00049315,120]
[378830653,1755041452935,-874.32,0.00049315,120]
[378830654,1755041452945,-400.0,0.00049315,120]
[378830655,1755041452955,-400.0,0.00049315,120]
[378830656,1755041452965,-467.6820113,0.00049315,120]
[378830657,1755041452976,-400.0,0.00049315,120]
[378830658,1755041452986,-1007.7,0.00049315,120]
[378830659,1755041452996,-400.0,0.00049315,120]
[378830660,1755041453007,-678.97,0.00049315,120]
[378830661,1755041453018,-400.0,0.00049315,120]
[378830662,1755041453028,-400.0,0.00049315,120]
[378830663,1755041453039,-400.0,0.00049315,120]
[378830664,1755041453049,-530.47,0.00049315,120]
[378830665,1755041453060,-734.92,0.00049315,120]
[378830666,1755041453070,-3392.87,0.00049315,120]
[378830667,1755041453081,-460.0,0.00049315,120]
[378830668,1755041453091,-400.0,0.00049315,120]
[378830669,1755041453101,-4200.01,0.00049315,120]
[378830670,1755041453115,-758.67,0.00049315,120]
[378830671,1755041453129,-400.0,0.00049315,120]
[378830672,1755041453143,-400.0,0.00049315,120]
[378830673,1755041453154,-688.68,0.00049315,120]
[378830674,1755041453168,-400.0,0.00049315,120]
[378830675,1755041453181,-400.0,0.00049315,120]
[378830676,1755041453195,-400.0,0.00049315,120]
[378830677,1755041453208,-126.61807998,0.00049315,120]
[378830678,1755041453235,-273.38192002,0.00049315,120]
[378830679,1755041453246,-193.534394,0.00049315,120]
[378830680,1755041453260,-400.0,0.00049315,120]
[378830681,1755041453273,-579.3,0.00049315,120]
[378830682,1755041453286,-541.77,0.00049315,120]
[378830683,1755041453299,-800.7,0.00049315,120]
[378830684,1755041453312,-151.83695762,0.00049315,120]
[378830685,1755041453325,-400.0,0.00049315,120]
[378830686,1755041453340,-400.0,0.00049315,120]
[378830687,1755041453353,-478.03,0.00049315,120]
[378830688,1755041453365,-400.0,0.00049315,120]
[378830689,1755041453378,-383.63672833,0.00049315,120]
[378830690,1755041454199,-3.99794044,0.000455,3]
[378830691,1755041454773,-1884.00205956,0.000455,3]
[378830692,1755041454785,-1836.98,0.00046401,2]
[378830693,1755041454797,-3776.0,0.0004774,3]
[378830694,1755041454808,-1888.0,0.00049103,30]
[378830695,1755041454819,-16.36327167,0.00049315,120]
[378830696,1755041454831,-400.0,0.00049315,120]
[378830697,1755041454843,-400.0,0.00049315,120]
[378830698,1755041454855,-400.0,0.00049315,120]
[378830699,1755041454864,-707.72,0.00049315,120]
[378830700,1755041454874,-769.37,0.00049315,120]
[378830701,1755041454883,-400.0,0.00049315,120]
[378830702,1755041454893,-400.0,0.00049315,120]
[378830703,1755041454903,-400.0,0.00049315,120]
[378830704,1755041454912,-400.0,0.00049315,120]
[378830705,1755041454921,-400.0,0.00049315,120]
[378830706,1755041454931,-400.0,0.00049315,120]
[378830707,1755041454940,-400.0,0.00049315,120]
[378830708,1755041454949,-400.0,0.00049315,120]
[378830709,1755041454958,-400.0,0.00049315,120]
[378830710,1755041454968,-460.0,0.00049315,120]
[378830711,1755041454977,-400.0,0.00049315,120]
[378830712,1755041454986,-400.0,0.00049315,120]
[378830713,1755041454995,-400.0,0.00049315,120]
[378830714,1755041455005,-400.0,0.00049315,120]
[378830715,1755041455015,-400.0,0.00049315,120]
[378830716,1755041455024,-400.0,0.00049315,120]
[378830717,1755041455034,-400.0,0.00049315,120]
[378830718,1755041455043,-224.89525856,0.00049315,30]
[378830719,1755041455052,-300.0,0.00049346,30]
[378830720,1755041455061,-1127.61665503,0.00049346,90]
[378830721,1755041455071,-151.0,0.00049346,120]
[378830722,1755041455080,-237.816183,0.00049346,120]
[378830723,1755041455089,-500.0,0.00049356,120]
[378830724,1755041455098,-728.42,0.00049356,120]
[378830725,1755041455107,-14132.34269774,0.00049357,120]
[378830726,1755041455119,-445.52652619,0.00049357,120]
[378830727,1755041455130,-136301.49077607,0.00049357,120]
[378830728,1755041455140,-151.0,0.00049357,120]
[378830729,1755041455149,-296.41616,0.00049357,120]
[378830730,1755041455158,-500.0,0.00049373,10]
[378830731,1755041455167,-337.29152457,0.00049488,120]
[378830732,1755041455177,-209.0,0.0004949,79]
[378830733,1755041455186,-300.0,0.00049499,120]
[378830734,1755041455195,-500.0,0.00049588,120]
[378830735,1755041455204,-500.0,0.00049588,120]
[378830736,1755041455214,-999.0,0.00049588,120]
[378830737,1755041455223,-728.42,0.00049588,120]
[378830738,1755041455232,-151.0,0.00049589,2]
[378830739,1755041455241,-400.0,0.00049589,2]
[378830740,1755041455251,-582.51,0.00049589,120]
[378830741,1755041455259,-400.0,0.00049589,120]
[378830742,1755041455268,-199.40673585,0.00049589,120]
[378830743,1755041455277,-400.0,0.00049589,120]
[378830744,1755041455286,-400.0,0.00049589,120]
[378830745,1755041455296,-400.0,0.00049589,120]
[378830746,1755041455305,-400.0,0.00049589,120]
[378830747,1755041455314,-400.0,0.00049589,120]
[378830748,1755041455323,-400.0,0.00049589,120]
[378830749,1755041455332,-400.0,0.00049589,120]
[378830750,1755041455752,-400.0,0.00049589,120]
[378830751,1755041455772,-466.56636011,0.00049589,120]
[378830752,1755041455793,-400.0,0.00049589,120]
[378830753,1755041455804,-520.87,0.00049589,120]
[378830754,1755041455814,-400.0,0.00049589,120]
[378830755,1755041455823,-400.0,0.00049589,120]
[378830756,1755041455832,-400.0,0.00049589,120]
[378830757,1755041455841,-400.0,0.00049589,120]
[378830758,1755041455851,-400.0,0.00049589,120]
[378830759,1755041455861,-400.0,0.00049589,120]
[378830760,1755041455870,-156.73063706,0.00049589,120]
[378830761,1755041455879,-400.0,0.00049589,120]
[378830762,1755041455888,-400.0,0.00049589,120]
[378830763,1755041455898,-400.0,0.00049589,120]
[378830764,1755041455907,-520.74511376,0.00049589,120]
[378830765,1755041455917,-541.6,0.00049589,120]
[378830766,1755041455926,-303.27679519,0.00049589,120]
[378830767,1755041455935,-400.0,0.00049589,120]
[378830768,1755041455945,-400.0,0.00049589,120]
[378830769,1755041455956,-321.81886364,0.00049589,120]
[378830770,1755041455965,-367.77,0.00049589,120]
[378830771,1755041455974,-400.0,0.00049589,120]
[378830772,1755041455984,-400.0,0.00049589,120]
[378830773,1755041455993,-400.0,0.00049589,120]
[378830774,1755041456002,-400.0,0.00049589,120]
[378830775,1755041456011,-400.0,0.00049589,120]
[378830776,1755041456021,-400.0,0.00049589,120]
[378830777,1755041456031,-400.0,0.00049589,120]
[378830778,1755041456040,-400.0,0.00049589,120]
[378830779,1755041456049,-391.88,0.00049589,120]
[378830780,1755041456058,-400.0,0.00049589,120]
[378830781,1755041456067,-400.0,0.00049589,120]
[378830782,1755041456076,-400.0,0.00049589,120]
[378830783,1755041456085,-400.0,0.00049589,120]
[378830784,1755041456095,-400.0,0.00049589,120]
[378830785,1755041456104,-400.0,0.00049589,120]
[378830786,1755041456113,-400.0,0.00049589,120]
[378830787,1755041456122,-400.0,0.00049589,120]
[378830788,1755041456131,-400.0,0.00049589,120]
[378830789,1755041456140,-2000.0,0.00049589,30]
[378830790,1755041456149,-400.0,0.00049589,120]
[378830791,1755041456160,-400.0,0.00049589,120]
[378830792,1755041456170,-400.0,0.00049589,120]
[378830793,1755041456179,-400.0,0.00049589,120]
[378830794,1755041456188,-400.0,0.00049589,120]
[378830795,1755041456197,-400.0,0.00049589,120]
[378830796,1755041456206,-452.60061011,0.00049589,120]
[378830797,1755041456215,-400.0,0.00049589,120]
[378830798,1755041456224,-400.0,0.00049589,120]
[378830799,1755041456232,-400.0,0.00049589,120]
[378830800,1755041456241,-400.0,0.00049589,120]
[378830801,1755041456250,-400.0,0.00049589,120]
[378830802,1755041456259,-400.0,0.00049589,120]
[378830803,1755041456268,-400.0,0.00049589,120]
[378830804,1755041456277,-400.0,0.00049589,120]
[378830805,1755041456286,-400.0,0.00049589,120]
[378830806,1755041456295,-400.0,0.00049589,120]
[378830807,1755041456304,-400.0,0.00049589,120]
[378830808,1755041456312,-400.0,0.00049589,120]
[378830809,1755041456321,-400.0,0.00049589,120]
[378830810,1755041456330,-200.89451356,0.00049589,120]
[378830811,1755041456339,-192.22,0.00049589,120]
[378830812,1755041456348,-400.0,0.00049589,120]
[378830813,1755041456357,-400.0,0.00049589,120]
[378830814,1755041456366,-400.0,0.00049589,120]
[378830815,1755041456375,-400.0,0.00049589,120]
[378830816,1755041456383,-400.0,0.00049589,120]
[378830817,1755041456392,-400.0,0.00049589,120]
[378830818,1755041456402,-400.0,0.00049589,120]
[378830819,1755041456412,-400.0,0.00049589,30]
[378830820,1755041456421,-400.0,0.00049589,120]
[378830821,1755041456430,-400.0,0.00049589,120]
[378830822,1755041456439,-400.0,0.00049589,120]